bitfinex-derivatives/quotes_BTCF0:USTF0_20250918
["timestamp","ask_amount","ask_price","bid_price","bid_amount"]
[1758222255316,4.00027085,117780.0,117770.0,0.76078597]
[1758222256216,4.08513115,117780.0,117770.0,0.76078597]
[1758222257016,4.00027085,117780.0,117770.0,0.76078597]
[1758222265816,4.08513115,117780.0,117770.0,0.76078597]
[1758222271123,3.52442827,117780.0,117770.0,0.76078597]
[1758222271320,4.08513115,117780.0,117770.0,0.76078597]
[1758222273724,4.36548259,117780.0,117770.0,0.7311]
[1758222284636,3.35905318,117780.0,117770.0,0.7311]
[1758222285636,4.08513115,117780.0,117770.0,0.7311]
[1758222285834,4.78611016,117780.0,117770.0,0.7311]
[1758222294042,4.06003219,117780.0,117770.0,0.7311]
[1758222294236,4.78611016,117780.0,117770.0,0.7311]
[1758222294542,4.01243016,117780.0,117770.0,0.7311]
[1758222294841,4.78539016,117780.0,117770.0,0.7311]
[1758222303241,4.01243016,117780.0,117770.0,0.7311]
[1758222303447,4.78527016,117780.0,117770.0,0.7311]
[1758222303947,4.78523016,117780.0,117770.0,0.7311]
[1758222306149,4.05915219,117780.0,117770.0,0.7311]
[1758222306346,4.78523016,117780.0,117770.0,0.7311]
[1758222313155,1.71868923,117780.0,117770.0,1.61234383]
[1758222313359,1.91145,117780.0,117770.0,1.67798383]
[1758222313554,3.10461063,117780.0,117770.0,1.67798383]
[1758222314258,3.12439385,117780.0,117770.0,1.67798383]
[1758222314556,2.70383322,117780.0,117770.0,1.67798383]
[1758222314758,3.12439385,117780.0,117770.0,1.67798383]
[1758222317965,2.70383322,117780.0,117770.0,1.67798383]
[1758222318161,3.12439385,117780.0,117770.0,1.67798383]
[1758222318764,2.35179385,117780.0,117770.0,1.67798383]
[1758222318966,3.12427385,117780.0,117770.0,1.67798383]
[1758222322867,3.12427385,117780.0,117770.0,1.2574232]
[1758222323167,3.12427385,117780.0,117770.0,1.67798383]
[1758222324067,3.54483448,117780.0,117770.0,1.67798383]
[1758222328667,2.77235448,117780.0,117770.0,1.67798383]
[1758222328867,3.54467448,117780.0,117770.0,1.67798383]
[1758222329570,3.54467448,117780.0,117770.0,1.2574232]
[1758222329772,3.54467448,117780.0,117770.0,1.67798383]
[1758222333368,3.54467448,117780.0,117770.0,1.2574232]
[1758222333574,3.54467448,117780.0,117770.0,1.67798383]
[1758222335776,2.77235448,117780.0,117770.0,1.67798383]
[1758222336074,3.54451448,117780.0,117770.0,1.67798383]
[1758222339278,3.54451448,117780.0,117770.0,1.42798383]
[1758222340081,2.77235448,117780.0,117770.0,1.42798383]
[1758222340378,3.54447448,117780.0,117770.0,1.42798383]
[1758222342181,3.54447448,117780.0,117770.0,1.0074232]
[1758222345484,3.54447448,117780.0,117770.0,1.42798383]
[1758222347787,3.26393944,117780.0,117770.0,1.0074232]
[1758222348086,2.49181944,117780.0,117770.0,0.9225557]
[1758222348288,3.26377944,117780.0,117770.0,0.9225557]
[1758222348788,3.98985741,117780.0,117770.0,0.9225557]
[1758222349588,3.98985741,117780.0,117770.0,1.0074232]
[1758222352786,4.01829741,117780.0,117770.0,1.0074232]
[1758222353090,4.01829741,117780.0,117770.0,0.7482357]
[1758222358192,4.01829741,117780.0,117770.0,0.8331032]
[1758222358399,4.01829741,117780.0,117770.0,0.9404632]
[1758222360499,4.01829741,117780.0,117770.0,0.8555957]
[1758222362202,4.01829741,117780.0,117770.0,0.9404632]
[1758222362402,4.01805741,117780.0,117770.0,0.9404632]
[1758222363999,3.45747119,117780.0,117770.0,0.9404632]
[1758222364205,2.65731119,117780.0,117770.0,1.28521631]
[1758222364505,3.7093243,117780.0,117770.0,1.28521631]
[1758222369708,3.42903119,117780.0,117770.0,1.28521631]
[1758222369909,3.7093243,117780.0,117770.0,1.28521631]
[1758222371306,3.7093243,117780.0,117770.0,1.0049232]
[1758222371515,3.7093243,117780.0,117770.0,1.28521631]
[1758222371814,3.7093243,117780.0,117770.0,1.0049232]
[1758222372021,3.7093243,117780.0,117770.0,1.28521631]
[1758222373709,2.65731119,117780.0,117770.0,1.28521631]
[1758222373914,1.93123322,117780.0,117770.0,1.28521631]
[1758222374114,2.70275322,117780.0,117770.0,1.28521631]
[1758222376724,1.93123322,117780.0,117770.0,1.28521631]
[1758222377022,2.70271322,117780.0,117770.0,1.28521631]
[1758222379426,1.93123322,117780.0,117770.0,1.28521631]
[1758222379621,2.70267322,117780.0,117770.0,1.28521631]
[1758222387433,2.70267322,117780.0,117770.0,1.0049232]
[1758222387633,2.70267322,117780.0,117770.0,1.28521631]
[1758222387827,2.98296633,117780.0,117770.0,1.0049232]
[1758222388128,2.98296633,117780.0,117770.0,1.28521631]
[1758222389236,2.98296633,117780.0,117770.0,1.0049232]
[1758222389437,4.01979741,117780.0,117770.0,0.8555957]
[1758222394440,4.01979741,117780.0,117770.0,0.7482357]
[1758222395036,4.01979741,117780.0,117770.0,0.8545957]
[1758222397438,3.29371944,117780.0,117770.0,0.8545957]
[1758222397640,4.01979741,117780.0,117770.0,0.8545957]
[1758222398138,3.45921119,117780.0,117770.0,0.8545957]
[1758222398338,4.01979741,117780.0,117770.0,0.8545957]
[1758222399838,3.29371944,117780.0,117770.0,0.8545957]
[1758222400041,4.01979741,117780.0,117770.0,0.8545957]
[1758222400442,3.45921119,117780.0,117770.0,0.8545957]
[1758222400641,4.01979741,117780.0,117770.0,0.8545957]
[1758222402542,4.01979741,117780.0,117770.0,0.9394633]
[1758222403239,4.01979741,117780.0,117770.0,1.0062733]
[1758222403439,3.98933741,117780.0,117770.0,1.0062733]
[1758222404842,3.26325944,117780.0,117770.0,1.0062733]
[1758222405042,3.98933741,117780.0,117770.0,1.0062733]
[1758222405948,3.21789741,117780.0,117770.0,1.0062733]
[1758222406137,3.98901741,117780.0,117770.0,1.0062733]
[1758222406444,4.01947741,117780.0,117770.0,0.8545957]
[1758222406939,4.01947741,117780.0,117770.0,0.7482357]
[1758222408246,4.63463092,117780.0,117770.0,0.7311]
[1758222408739,4.35433781,117780.0,117770.0,0.7311]
[1758222409736,5.05546216,117780.0,117770.0,0.7311]
[1758222410140,4.97060176,117780.0,117770.0,0.7311]
[1758222413652,5.05546216,117780.0,117770.0,0.7311]
[1758222420857,4.32938419,117780.0,117770.0,0.7311]
[1758222421053,5.05546216,117780.0,117770.0,0.7311]
[1758222424658,4.32938419,117780.0,117770.0,0.7311]
[1758222424858,4.07938419,117780.0,117770.0,0.7311]
[1758222425655,4.80546216,117780.0,117770.0,0.7311]
[1758222432866,4.07938419,117780.0,117770.0,0.7311]
[1758222433158,4.80546216,117780.0,117770.0,0.7311]
[1758222436657,4.07970919,117780.0,117770.0,0.7311]
[1758222438762,4.80578716,117780.0,117770.0,0.7311]
[1758222440263,3.54407659,117780.0,117770.0,0.7311]
[1758222440456,4.80578716,117780.0,117770.0,0.7311]
[1758222442461,4.07970919,117780.0,117770.0,0.7311]
[1758222442651,4.80578716,117780.0,117770.0,0.7311]
[1758222453477,4.80478716,117780.0,117770.0,0.7301]
[1758222453678,4.80878716,117780.0,117770.0,0.7301]
[1758222454975,4.08270919,117780.0,117770.0,0.7301]
[1758222455182,4.80878716,117780.0,117770.0,0.7301]
[1758222459491,4.08270919,117780.0,117770.0,0.7301]
[1758222459681,4.80878716,117780.0,117770.0,0.7301]
[1758222461289,4.08270919,117780.0,117770.0,0.7301]
[1758222461489,4.80878716,117780.0,117770.0,0.7301]
[1758222462490,2.77595659,117780.0,117770.0,0.7301]
[1758222462689,4.80842716,117780.0,117770.0,0.7301]
[1758222463790,4.08234919,117780.0,117770.0,0.7301]
[1758222463989,4.80842716,117780.0,117770.0,0.7301]
[1758222468990,4.80838716,117780.0,117770.0,0.7301]
[1758222471997,4.38781473,117780.0,117770.0,0.7301]
[1758222475394,3.7958645,117780.0,117770.0,1.2413275]
[1758222475591,4.07624388,117780.0,117770.0,1.2413275]
[1758222475994,3.30560388,117780.0,117770.0,1.2413275]
[1758222476196,4.07624388,117780.0,117770.0,1.2413275]
[1758222476394,4.07624388,117780.0,117770.0,1.15646]
[1758222476898,3.30560388,117780.0,117770.0,1.15646]
[1758222477098,4.07624388,117780.0,117770.0,1.15646]
[1758222477591,3.35016591,117780.0,117770.0,1.15646]
[1758222477798,4.07624388,117780.0,117770.0,1.15646]
[1758222479100,4.10670388,117780.0,117770.0,1.09008]
[1758222479498,3.51548512,117780.0,117770.0,1.15605]
[1758222479699,4.10670388,117780.0,117770.0,1.09008]
[1758222480802,3.33606388,117780.0,117770.0,1.09008]
[1758222481003,4.10666388,117780.0,117770.0,1.09008]
[1758222484809,4.10666388,117780.0,117770.0,0.9801]
[1758222495618,3.38058591,117780.0,117770.0,0.9801]
[1758222495922,3.38058591,117780.0,117770.0,1.09273]
[1758222496719,4.10666388,117780.0,117770.0,1.09273]
[1758222497520,4.02180358,117780.0,117770.0,1.09273]
[1758222497719,4.02180358,117780.0,117770.0,1.1587]
[1758222499922,4.10666368,117780.0,117770.0,1.1587]
[1758222502227,3.46104482,117780.0,117770.0,1.1587]
[1758222502433,4.02180358,117780.0,117770.0,1.1587]
[1758222503128,1.91445,117780.0,117770.0,1.27394678]
[1758222503321,1.91445,117780.0,117770.0,1.52394678]
[1758222503527,2.57596,117780.0,117770.0,1.52394678]
[1758222503832,1.8054,117780.0,117770.0,1.80432616]
[1758222504025,2.55668762,117780.0,117770.0,1.80432616]
[1758222504225,2.55668762,117780.0,117770.0,1.52394678]
[1758222507530,2.55660762,117780.0,117770.0,1.52394678]
[1758222509233,1.78608762,117780.0,117770.0,1.52394678]
[1758222509431,2.55660762,117780.0,117770.0,1.52394678]
[1758222512934,1.78608762,117780.0,117770.0,1.52394678]
[1758222513134,2.55656762,117780.0,117770.0,1.52394678]
[1758222514533,1.78608762,117780.0,117770.0,2.13432616]
[1758222514742,1.5677671,117780.0,117770.0,2.2267347]
[1758222515639,1.49544576,117780.0,117770.0,2.2267347]
[1758222516834,1.49544576,117780.0,117770.0,2.35627844]
[1758222519337,1.49544576,117780.0,117770.0,2.10627844]
[1758222521841,1.49544576,117780.0,117770.0,1.65627844]
[1758222522138,1.49544576,117780.0,117770.0,2.19627844]
[1758222525543,1.49544576,117780.0,117770.0,2.21316233]
[1758222526044,1.47534576,117780.0,117770.0,2.21316233]
[1758222526939,1.12158967,117780.0,117770.0,2.31316233]
[1758222527243,0.70002767,117780.0,117770.0,2.56316233]
[1758222527539,1.72876,117810.0,117800.0,0.0654]
[1758222527738,1.72876,117810.0,117800.0,1.7753998]
[1758222527739,2.29082865,117810.0,117800.0,1.7753998]
[1758222528844,2.29582865,117810.0,117800.0,1.56129625]
[1758222529040,2.29582865,117810.0,117800.0,1.56177011]
[1758222529642,2.30682865,117810.0,117800.0,1.56377011]
[1758222530042,2.30382865,117810.0,117800.0,1.56277011]
[1758222530444,2.30078865,117810.0,117800.0,1.56377011]
[1758222531745,2.30078865,117810.0,117800.0,2.12356259]
[1758222534445,1.41414865,117810.0,117800.0,2.12356259]
[1758222534646,2.18438865,117810.0,117800.0,2.12356259]
[1758222536446,2.60447458,117810.0,117800.0,2.12356259]
[1758222537249,1.83423458,117810.0,117800.0,2.12356259]
[1758222537448,2.60443458,117810.0,117800.0,2.12356259]
[1758222537649,2.18434865,117810.0,117800.0,2.12356259]
[1758222537948,2.60443458,117810.0,117800.0,2.12356259]
[1758222538650,2.18434865,117810.0,117800.0,2.43356259]
[1758222538851,2.18434865,117810.0,117800.0,2.77483405]
[1758222544554,2.44804865,117810.0,117800.0,2.77483405]
[1758222547556,2.44804865,117810.0,117800.0,1.93466219]
[1758222547756,2.44804865,117810.0,117800.0,2.77493405]
[1758222550259,2.18434865,117810.0,117800.0,2.77493405]
[1758222552754,2.18434865,117810.0,117800.0,1.93476219]
[1758222553158,2.18434865,117810.0,117800.0,2.77493405]
[1758222555956,2.60443458,117810.0,117800.0,2.77493405]
[1758222556461,2.86813458,117810.0,117800.0,2.77493405]
[1758222563065,2.44804865,117810.0,117800.0,2.77493405]
[1758222572969,1.67784865,117810.0,117800.0,2.77493405]
[1758222573172,1.04362,117810.0,117800.0,2.77493405]
[1758222573575,1.04362,117810.0,117800.0,2.97331697]
[1758222576170,0.2657,117810.0,117800.0,2.72331697]
[1758222576370,0.14749065,117810.0,117800.0,3.1434029]
[1758222576574,0.91737065,117810.0,117800.0,2.72331697]
[1758222577276,0.91737065,117810.0,117800.0,2.52493405]
[1758222577871,0.91737065,117810.0,117800.0,2.94501998]
[1758222578077,1.68839,117830.0,117820.0,0.2655013]
[1758222578381,3.01514797,117830.0,117820.0,2.37188536]
[1758222579081,2.94282662,117830.0,117820.0,2.37188536]
[1758222579782,2.94382662,117830.0,117820.0,2.37188536]
[1758222580080,2.94582662,117830.0,117820.0,2.37288536]
[1758222585486,2.21974865,117830.0,117820.0,2.37288536]
[1758222585788,2.94582662,117830.0,117820.0,2.37288536]
[1758222586589,2.87350527,117830.0,117820.0,2.37288536]
[1758222591792,2.87350527,117830.0,117820.0,2.09256392]
[1758222597392,2.87350527,117830.0,117820.0,1.5327135]
[1758222597596,2.1474273,117830.0,117820.0,2.09266392]
[1758222597899,2.93930527,117830.0,117820.0,1.66128741]
[1758222598092,3.21923048,117830.0,117820.0,1.74611881]
[1758222598792,2.93930527,117830.0,117820.0,1.74611881]
[1758222602293,2.93930527,117830.0,117820.0,1.3813622]
[1758222602294,3.74915569,117830.0,117820.0,1.3813622]
[1758222602499,3.88138269,117830.0,117820.0,0.94831214]
[1758222603095,3.60145748,117830.0,117820.0,0.94831214]
[1758222603797,3.60145748,117830.0,117820.0,1.05333214]
[1758222611107,3.60145748,117830.0,117820.0,0.94831214]
[1758222613006,3.60145748,117830.0,117820.0,1.05333214]
[1758222618011,3.60145748,117830.0,117820.0,1.13816354]
[1758222619312,3.60145748,117830.0,117820.0,1.05333214]
[1758222621406,3.60145748,117830.0,117820.0,1.13816354]
[1758222624417,2.87537951,117830.0,117820.0,1.13816354]
[1758222624717,3.60145748,117830.0,117820.0,1.13816354]
[1758222627618,3.60145748,117830.0,117820.0,1.05333214]
[1758222627818,3.60145748,117830.0,117820.0,0.94831214]
[1758222629825,3.60145748,117830.0,117820.0,1.05333214]
[1758222630423,3.60145748,117830.0,117820.0,0.94831214]
[1758222630622,3.60145748,117830.0,117820.0,1.03314354]
[1758222635737,3.60145748,117830.0,117820.0,0.94831214]
[1758222635927,3.60145748,117830.0,117820.0,1.05602214]
[1758222636235,3.60145748,117830.0,117820.0,1.14085354]
[1758222637837,2.87537951,117830.0,117820.0,1.14085354]
[1758222638136,3.60145748,117830.0,117820.0,1.14085354]
[1758222639437,3.35145748,117830.0,117820.0,1.05602214]
[1758222639631,3.35145748,117830.0,117820.0,0.94831214]
[1758222644634,3.63138269,117830.0,117820.0,0.94831214]
[1758222644838,3.96620689,117830.0,117820.0,0.94831214]
[1758222646638,3.88138269,117830.0,117820.0,1.03314354]
[1758222647941,3.96620689,117830.0,117820.0,1.03314354]
[1758222651845,4.24668423,117830.0,117820.0,1.03314354]
[1758222653546,4.24668423,117830.0,117820.0,0.94831214]
[1758222657846,3.39202003,117830.0,117820.0,1.03314354]
[1758222658146,4.24628423,117830.0,117820.0,1.03314354]
[1758222660250,3.40595647,117830.0,117820.0,0.94831214]
[1758222660548,4.24628423,117830.0,117820.0,1.05475214]
[1758222661845,4.16146003,117830.0,117820.0,1.13958354]
[1758222662450,4.24628423,117830.0,117820.0,1.13958354]
[1758222662751,4.24628423,117830.0,117820.0,1.05475214]
[1758222667652,4.24628423,117830.0,117820.0,0.94831214]
[1758222667955,3.40595647,117830.0,117820.0,0.94831214]
[1758222668155,4.24628423,117830.0,117820.0,0.94831214]
[1758222671657,4.24628423,117830.0,117820.0,0.9311]
[1758222673652,3.40595647,117830.0,117820.0,0.9311]
[1758222673858,4.24628423,117830.0,117820.0,0.9311]
[1758222677769,4.66644811,117830.0,117820.0,0.9311]
[1758222678166,4.24628423,117830.0,117820.0,0.9311]
[1758222680574,3.52020626,117830.0,117820.0,0.9311]
[1758222681271,2.6798785,117830.0,117820.0,1.04634]
[1758222681571,3.52020626,117830.0,117820.0,0.9311]
[1758222685678,4.24628423,117830.0,117820.0,0.9311]
[1758222691180,3.52020626,117830.0,117820.0,0.9311]
[1758222691372,4.24628423,117830.0,117820.0,0.9311]
[1758222692477,3.52020626,117830.0,117820.0,0.9311]
[1758222692674,4.24628423,117830.0,117820.0,0.9311]
[1758222693981,3.40595647,117830.0,117820.0,0.9311]
[1758222694281,4.24628423,117830.0,117820.0,0.9311]
[1758222696182,3.52020626,117830.0,117820.0,0.9311]
[1758222696386,4.24628423,117830.0,117820.0,0.9311]
[1758222699089,4.16146003,117830.0,117820.0,1.0159313]
[1758222699386,3.99628413,117830.0,117820.0,1.04558]
[1758222700984,1.5556073,117830.0,117820.0,2.22073906]
[1758222701287,2.2590073,117830.0,117820.0,2.28462906]
[1758222701884,1.3775873,117830.0,117820.0,2.28462906]
[1758222702183,2.1467473,117830.0,117820.0,2.67731546]
[1758222712092,1.3775873,117830.0,117820.0,2.67731546]
[1758222712392,2.1466273,117830.0,117820.0,2.67731546]
[1758222713991,2.1466273,117830.0,117820.0,2.39686114]
[1758222724403,1.3775873,117830.0,117820.0,2.39686114]
[1758222724602,2.1465073,117830.0,117820.0,2.39686114]
[1758222729602,2.42644402,117830.0,117820.0,2.11692442]
[1758222730801,2.42644402,117830.0,117820.0,1.8369877]
[1758222731007,2.77389074,117830.0,117820.0,1.2604113]
[1758222731202,3.03759074,117830.0,117820.0,1.2604113]
[1758222731397,4.01366871,117830.0,117820.0,1.04558]
[1758222734508,3.73373199,117830.0,117820.0,1.04558]
[1758222737114,3.47003199,117830.0,117820.0,1.04558]
[1758222739215,2.74395402,117830.0,117820.0,1.04558]
[1758222739415,3.47003199,117830.0,117820.0,1.04558]
[1758222744715,3.94446281,117830.0,117820.0,0.9311]
[1758222747522,3.21838484,117830.0,117820.0,0.9311]
[1758222747728,3.94446281,117830.0,117820.0,0.9311]
[1758222748727,3.38458937,117830.0,117820.0,0.9311]
[1758222748926,3.94446281,117830.0,117820.0,0.9311]
[1758222755732,3.21838484,117830.0,117820.0,0.9311]
[1758222756632,3.94446281,117830.0,117820.0,0.9311]
[1758222757032,3.94446281,117830.0,117820.0,1.04515]
[1758222758833,3.04984527,117830.0,117820.0,1.04515]
[1758222759133,3.06468527,117830.0,117820.0,1.72719802]
[1758222759325,2.99717527,117830.0,117820.0,1.47719802]
[1758222759526,3.27711199,117830.0,117820.0,1.47719802]
[1758222759733,3.34078199,117830.0,117820.0,1.47719802]
[1758222759936,3.34078199,117830.0,117820.0,1.1972613]
[1758222760138,3.34078199,117830.0,117820.0,1.47719802]
[1758222761334,3.34078199,117830.0,117820.0,1.1972613]
[1758222761736,3.34078199,117830.0,117820.0,1.11243]
[1758222762032,3.34078199,117830.0,117820.0,1.04515]
[1758222763438,3.06084527,117830.0,117820.0,1.04515]
[1758222763639,3.34078199,117830.0,117820.0,1.04515]
[1758222767540,3.34078199,117830.0,117820.0,1.1299813]
[1758222772044,3.06084527,117830.0,117820.0,1.1299813]
[1758222772347,3.34078199,117830.0,117820.0,1.1299813]
[1758222773641,3.34078199,117830.0,117820.0,1.04515]
[1758222773945,3.62071871,117830.0,117820.0,0.9311]
[1758222774445,3.62071871,117830.0,117820.0,1.03763]
[1758222774644,3.34078199,117830.0,117820.0,1.03763]
[1758222775045,3.70554281,117830.0,117820.0,1.03763]
[1758222775234,3.70554281,117830.0,117820.0,0.9311]
[1758222775235,4.23547953,117830.0,117820.0,0.9311]
[1758222775439,3.95554281,117830.0,117820.0,0.9311]
[1758222775841,4.65636855,117830.0,117820.0,0.9311]
[1758222777648,4.23613549,117830.0,117820.0,0.9311]
[1758222778349,4.65636855,117830.0,117820.0,0.9311]
[1758222786653,3.93029058,117830.0,117820.0,0.9311]
[1758222787749,4.65636855,117830.0,117820.0,0.9311]
[1758222796060,3.39566937,117830.0,117820.0,0.9311]
[1758222796356,4.65636855,117830.0,117820.0,0.9311]
[1758222798663,3.93029058,117830.0,117820.0,0.9311]
[1758222799663,4.65636855,117830.0,117820.0,0.9311]
[1758222800259,4.40636855,117830.0,117820.0,0.18567806]
[1758222800465,0.2631213,117820.0,117810.0,0.0001]
[1758222800658,0.2631285,117810.0,117800.0,0.16835701]
[1758222800858,1.88311462,117810.0,117800.0,0.49825701]
[1758222801160,2.60919259,117810.0,117800.0,0.98341191]
[1758222802264,2.61219259,117810.0,117800.0,0.98441191]
[1758222802965,2.61319259,117810.0,117800.0,0.98441191]
[1758222807865,1.88711462,117810.0,117800.0,0.98441191]
[1758222808072,2.61319259,117810.0,117800.0,0.98441191]
[1758222812870,1.77272647,117810.0,117800.0,0.98441191]
[1758222813079,2.61319259,117810.0,117800.0,1.09655191]
[1758222814767,4.40091259,117810.0,117800.0,1.09655191]
[1758222818167,4.40091259,117810.0,117800.0,0.98441191]
[1758222821061,4.40091259,117810.0,117800.0,1.09655191]
[1758222821365,4.40091259,117810.0,117800.0,1.09665191]
[1758222821565,2.69608797,117810.0,117800.0,1.18149761]
[1758222821761,3.89388103,117810.0,117800.0,1.18149761]
[1758222822975,3.89388103,117810.0,117800.0,1.09665191]
[1758222825278,3.89348103,117810.0,117800.0,1.09665191]
[1758222832280,4.31371409,117810.0,117800.0,1.09665191]
[1758222837781,3.75341031,117810.0,117800.0,1.09665191]
[1758222838283,3.75341031,117810.0,117800.0,0.98451191]
[1758222839081,3.75341031,117810.0,117800.0,1.09922191]
[1758222840182,3.75341031,117810.0,117800.0,1.18406761]
[1758222844883,3.47324797,117810.0,117800.0,1.18406761]
[1758222845082,3.75341031,117810.0,117800.0,1.18406761]
[1758222846191,3.75341031,117810.0,117800.0,1.06935761]
[1758222847188,3.75341031,117810.0,117800.0,0.98451191]
[1758222848290,4.03357265,117810.0,117800.0,0.98451191]
[1758222848797,4.03357265,117810.0,117800.0,0.96737583]
[1758222848800,4.11841115,117810.0,117800.0,0.96737583]
[1758222849687,4.13822685,117810.0,117800.0,0.96737583]
[1758222851291,4.13822685,117810.0,117800.0,0.97707121]
[1758222853296,4.13822685,117810.0,117800.0,0.96737583]
[1758222854389,4.13822685,117810.0,117800.0,0.97670136]
[1758222860798,4.13822685,117810.0,117800.0,1.08766136]
[1758222861598,4.13822685,117810.0,117800.0,0.97670136]
[1758222863700,3.41214888,117810.0,117800.0,0.97670136]
[1758222863895,4.13822685,117810.0,117800.0,0.97670136]
[1758222865802,3.36106685,117810.0,117800.0,0.97670136]
[1758222866002,4.13506685,117810.0,117800.0,1.08766136]
[1758222866203,4.13148685,117810.0,117800.0,1.08766136]
[1758222869608,3.95677685,117810.0,117800.0,0.97670136]
[1758222870008,3.95677685,117810.0,117800.0,0.96737583]
[1758222874802,3.95677685,117810.0,117800.0,0.22677806]
[1758222874803,4.48693919,117810.0,117800.0,0.22677806]
[1758222875002,0.0848457,117800.0,117790.0,0.0001]
[1758222875200,0.0848529,117790.0,117780.0,0.06957772]
[1758222875409,0.8588929,117790.0,117780.0,1.01947772]
[1758222875614,1.58497087,117790.0,117780.0,1.01947772]
[1758222876308,1.58597087,117790.0,117780.0,1.01947772]
[1758222876508,1.58597087,117790.0,117780.0,1.0292474]
[1758222877413,1.58797087,117790.0,117780.0,1.0302474]
[1758222877712,2.14829555,117790.0,117780.0,1.0312474]
[1758222878514,2.15029555,117790.0,117780.0,1.0312474]
[1758222880217,1.42421758,117790.0,117780.0,1.0312474]
[1758222880411,2.15029555,117790.0,117780.0,1.0312474]
[1758222882414,1.58997087,117790.0,117780.0,1.0312474]
[1758222882614,2.15029555,117790.0,117780.0,1.0312474]
[1758222883317,2.15029555,117790.0,117780.0,1.02147772]
[1758222890121,1.42421758,117790.0,117780.0,1.02147772]
[1758222890321,2.15029555,117790.0,117780.0,1.02147772]
[1758222893228,2.43045789,117790.0,117780.0,0.952]
[1758222893428,2.15029555,117790.0,117780.0,0.952]
[1758222896534,2.43045789,117790.0,117780.0,0.952]
[1758222896734,2.43045789,117790.0,117780.0,0.9521]
[1758222897335,2.68045789,117790.0,117780.0,0.9521]
[1758222897530,1.95437992,117790.0,117780.0,0.9521]
[1758222897834,3.10170016,117790.0,117780.0,0.9521]
[1758222900335,2.85170016,117790.0,117780.0,0.9521]
[1758222901039,3.10170016,117790.0,117780.0,0.20667806]
[1758222901438,3.10170016,117790.0,117780.0,0.6221]
[1758222901935,0.0848602,117780.0,117770.0,0.0001]
[1758222902136,0.0848674,117770.0,117760.0,0.0849742]
[1758222902340,1.69910026,117770.0,117760.0,0.9348742]
[1758222902540,2.42517823,117770.0,117760.0,0.9348742]
[1758222903242,2.42517823,117770.0,117760.0,0.85]
[1758222903636,2.42717823,117770.0,117760.0,0.86039434]
[1758222904339,2.0066018,117770.0,117760.0,0.86039434]
[1758222905843,3.7959218,117770.0,117760.0,0.86139434]
[1758222909045,3.81575164,117770.0,117760.0,0.86139434]
[1758222909645,3.81575164,117770.0,117760.0,0.81139434]
[1758222910646,4.23632807,117770.0,117760.0,0.81139434]
[1758222911946,4.21649823,117770.0,117760.0,0.81139434]
[1758222912547,4.23663587,117770.0,117760.0,0.81139434]
[1758222913144,4.48663587,117770.0,117760.0,0.572]
[1758222913448,4.48663587,117770.0,117760.0,0.892]
[1758222913650,4.49618143,117770.0,117760.0,0.892]
[1758222916653,3.77010346,117770.0,117760.0,0.892]
[1758222917551,3.83717018,117770.0,117760.0,0.892]
[1758222921859,4.56324815,117770.0,117760.0,0.892]
[1758222922048,4.56324815,117770.0,117760.0,0.8921]
[1758222926056,3.72209529,117770.0,117760.0,0.8921]
[1758222926256,4.56324815,117770.0,117760.0,0.8921]
[1758222929659,4.74752815,117770.0,117760.0,0.8921]
[1758222934863,4.74752815,117770.0,117760.0,0.8921]
[1758222939267,4.49752815,117770.0,117760.0,0.8921]
[1758222940968,3.77145018,117770.0,117760.0,0.8921]
[1758222941172,4.49752815,117770.0,117760.0,0.8921]
[1758222942269,3.77145018,117770.0,117760.0,0.8921]
[1758222942468,4.49752815,117770.0,117760.0,0.8921]
[1758222947281,3.77145018,117770.0,117760.0,0.8921]
[1758222947482,4.49752815,117770.0,117760.0,0.8921]
[1758222949781,4.49752815,117770.0,117760.0,0.5921]
[1758222953085,4.49676815,117770.0,117760.0,0.5921]
[1758222954483,4.49676815,117770.0,117760.0,0.7921]
[1758222959787,4.21650301,117770.0,117760.0,0.7921]
[1758222964991,3.65561529,117770.0,117760.0,0.7921]
[1758222965188,4.21650301,117770.0,117760.0,0.7921]
[1758222967388,4.21550301,117770.0,117760.0,0.7911]
[1758222967597,4.21650301,117770.0,117760.0,0.7911]
[1758222967894,4.22250301,117770.0,117760.0,0.7921]
[1758222969295,3.49642504,117770.0,117760.0,0.7921]
[1758222969494,4.22250301,117770.0,117760.0,0.7921]
[1758222970497,4.21295745,117770.0,117760.0,0.7921]
[1758222973200,4.14589073,117770.0,117760.0,0.7921]
[1758222976587,4.14573073,117770.0,117760.0,0.7921]
[1758222983502,3.58484301,117770.0,117760.0,0.7921]
[1758222983703,4.14573073,117770.0,117760.0,0.5456535]
[1758222984300,4.14573073,117770.0,117760.0,0.3704397]
[1758222984600,0.2645847,117760.0,117750.0,0.0001]
[1758222984803,0.2645919,117750.0,117740.0,0.10645]
[1758222985098,1.31735576,117750.0,117740.0,1.04635]
[1758222985300,1.59779962,117750.0,117740.0,1.04635]
[1758222985500,1.59779962,117750.0,117740.0,0.71635]
[1758222985702,1.31735576,117750.0,117740.0,0.71635]
[1758222986503,1.59779962,117750.0,117740.0,0.61]
[1758222986699,0.2645991,117740.0,117730.0,0.0001]
[1758222987003,0.2645991,117740.0,117700.0,0.12345726]
[1758222987004,0.2646207,117710.0,117700.0,0.12345726]
[1758222987300,3.09233958,117710.0,117700.0,0.96345726]
[1758222989104,3.09233958,117710.0,117700.0,1.05261042]
[1758222989301,3.09433958,117710.0,117700.0,0.90550316]
[1758222989802,3.09633958,117710.0,117700.0,1.01650316]
[1758222990002,4.10286141,117710.0,117700.0,0.4969022]
[1758222990201,4.10286141,117710.0,117700.0,0.111]
[1758222992799,4.10286141,117710.0,117700.0,0.001]
[1758222993196,4.10086141,117710.0,117700.0,0.12]
[1758222993402,4.10286141,117710.0,117700.0,0.121]
[1758222993705,3.05009755,117710.0,117700.0,1.00207386]
[1758222993911,3.09653958,117710.0,117700.0,1.00207386]
[1758222994100,3.09657958,117710.0,117700.0,1.00207386]
[1758222994403,3.09657958,117710.0,117700.0,0.93755386]
[1758222994604,3.09657958,117710.0,117700.0,0.65711]
[1758222995904,0.004,117710.0,117700.0,1.29163]
[1758222996108,0.004,117710.0,117700.0,1.93743562]
[1758222996109,2.06392,117710.0,117700.0,1.93743562]
[1758222996700,1.79316,117710.0,117700.0,1.93743562]
[1758222996907,2.56604,117710.0,117700.0,1.93743562]
[1758222998603,2.56604,117710.0,117700.0,1.93763462]
[1758222999308,2.56604,117710.0,117700.0,1.68763462]
[1758223000607,2.6509507,117710.0,117700.0,1.40709126]
[1758223001813,2.6509507,117710.0,117700.0,1.68763462]
[1758223002114,2.56604,117710.0,117700.0,1.68763462]
[1758223004314,2.6509507,117710.0,117700.0,1.68763462]
[1758223006721,2.6509507,117710.0,117700.0,1.04163]
[1758223006909,2.99857406,117710.0,117700.0,0.97711]
[1758223007109,3.10873406,117710.0,117700.0,0.97711]
[1758223009323,2.8281907,117710.0,117700.0,1.25765336]